Cogmind - Beta 14 @@@ ROGUE MODE // 2024.09.26 @ 15:52:13 Player: Connor Result: Destroyed by D-53 Grenadier with Mini Grenade Launcher Performance ------------- Evolutions (1) 500 Regions Visited (3) 600 Robots Destroyed (6) 30 Value Destroyed (227) 227 Prototype IDs (0) 0 Alien Tech Used (0) 0 Bonus (0) 0 TOTAL SCORE: 1357 Bonus ------- None Cogmind --------- Core Integrity 0/400 Matter 300/300 Energy 98/100 System Corruption 3% Temperature Cool (0) Movement Core (50) Location -9/Mines Parts ------- > --- POWER (2) -------- (None) > --- PROPULSION (3) --- (None) > --- UTILITY (2) ------ (None) > --- WEAPON (2) ------- (None) > --- INVENTORY (5) ---- (None) Peak State ------------ > --- POWER ------------ Ion Engine > --- PROPULSION ------- Improved Treads Improved Treads Improved Treads > --- UTILITY ---------- Small Storage Unit > --- WEAPON ----------- EM Pulse Gun Small Laser > --- INVENTORY -------- Improved Treads Aluminum Leg Aluminum Leg Aluminum Leg Aluminum Leg Wheel [Rating: 10] Favorites ----------- Power Light Ion Engine Engine Light Ion Engine Propulsion Aluminum Leg Treads Improved Treads Leg Aluminum Leg Wheel Wheel Utility Small Storage Unit Storage Small Storage Unit Weapon Small Laser Energy Gun Small Laser Ballistic Gun Light Assault Rifle Build | -11 -10 -9 -9 ------- Run | Yrd Mat Mat Min Slots Evolved 2 | . . 2 . Power 1 | . . 1 . Propulsion 1 | . . 1 . Utility . | . . . . Weapon . | . . . . Parts Attached 19 | 6 9 4 . Power 3 | 1 2 . . Engine 3 | 1 2 . . Core . | . . . . Reactor . | . . . . Propulsion 10 | 2 4 4 . Treads 3 | . . 3 . Leg 5 | . 4 1 . Wheel 2 | 2 . . . Hover . | . . . . Flight . | . . . . Utility 1 | 1 . . . Device . | . . . . Storage 1 | 1 . . . Processor . | . . . . Hackware . | . . . . Protection . | . . . . Artifact . | . . . . Weapon 5 | 2 3 . . Energy Gun 3 | 1 2 . . Energy Cannon . | . . . . Ballistic Gun 2 | 1 1 . . Ballistic Cannon . | . . . . Launcher . | . . . . Special Weapon . | . . . . Impact Weapon . | . . . . Slashing Weapon . | . . . . Piercing Weapon . | . . . . Special Melee Weapon . | . . . . Unidentified Prototypes . | . . . . Parts Lost 6 | . 2 4 . Power 2 | . 1 1 . Propulsion 2 | . 1 1 . Utility . | . . . . Weapon 2 | . . 2 . Highest Loss Streak 4 | . 1 4 . To Critical Strikes . | . . . . Average Slot Usage (%) 65 | . 80 62 . Engine 10 | . 13 9 . Treads 9 | . . 23 . Leg 12 | . 19 5 . Wheel 2 | . 4 . . Storage 11 | . 14 9 . Energy Gun 13 | . 15 14 . Ballistic Gun 6 | . 11 . . Peak Build Rating 10 | 6 6 10 . Average Rating 5 | 5 5 8 . On Entrance 3 | . 6 6 . Naked Turns 66 | . . 17 49 Heaviest Build 13 | 10 13 13 . Greatest Support 69 | 20 20 69 3 Greatest Overweight (x) 3 | . 3 . . Average Overweight (x) . | . . . . Largest Inventory Capacity 8 | 8 8 8 5 Average Capacity 7 | 7 8 7 5 Most Carried 6 | 4 5 6 . Average Carried 2 | 2 4 1 . Final Capacity 8 | 8 8 5 5 Final Carried 4 | 4 3 . . Class Distribution -------------------- 100% | Mutant Dominant Class ---------------- Mutant | -10/Materials Mutant | -9/Materials Mutant | -9/Mines Resources | -11 -10 -9 -9 ----------- Run | Yrd Mat Mat Min Matter Collected 375 | 251 49 66 9 Remotely . | . . . . Salvage Created 247 | . 119 128 . Parts 10 | . 3 7 . Haulers Intercepted . | . . . . Recyclers Shooed . | . . . . Parts Field Recycled . | . . . . Retrieved Matter . | . . . . Parts Self-Destructed . | . . . . Prevented . | . . . . Kills | -11 -10 -9 -9 ------- Run | Yrd Mat Mat Min Combat Hostiles Destroyed 6 | . 3 3 . Guns 5 | . 3 2 . AOE 1 | . . 1 . Classes Destroyed 1 | . 1 . . Grunt 6 | . 3 3 . Best Kill Streak 3 | . 2 3 . Combat Bots Only 3 | . 2 3 . Max Kills in Single Turn 2 | . 2 1 . Gunslinging . | . . . . Exploded 1 | . . 1 . Melee . | . . . . Uniques/NPCs Destroyed . | . . . . Combat | -11 -10 -9 -9 -------- Run | Yrd Mat Mat Min Hostile Shots Fired 132 | . 42 85 5 Missed 30 | . 7 23 . Damage Taken 1452 | . 441 842 169 Core 542 | . 136 237 169 Absorbed by Shields . | . . . . Core Remaining (%) 72 | 100 45 . . Volleys Fired 36 | . 24 12 . Largest 2 | . 2 2 . Hottest 80 | . 60 80 . Shots Fired 71 | . 47 24 . Gun 71 | . 47 24 . Cannon . | . . . . Launcher . | . . . . Special . | . . . . Kinetic 23 | . 23 . . Thermal 35 | . 23 12 . Explosive . | . . . . Electromagnetic 13 | . 1 12 . Robot Hit Streak 15 | . 5 15 . Robot Miss Streak 8 | . 8 5 . Penetration Max . | . . . . Secondary Targets 2 | . . 2 . Max Gunslinging Chain 1 | . . 1 . Shots Hit Robots 41 | . 23 18 . Core Hits 14 | . 9 5 . Critical Kills . | . . . . Critical Parts Destroyed . | . . . . Critical Strikes . | . . . . Melee Attacks . | . . . . Impact . | . . . . Slashing . | . . . . Piercing . | . . . . Sneak Attacks . | . . . . Combat Hostiles . | . . . . Follow-up Attacks . | . . . . Damage Inflicted 532 | . 247 285 . Guns 473 | . 247 226 . Cannons . | . . . . Explosions 59 | . . 59 . Melee . | . . . . Ramming . | . . . . Kinetic 96 | . 96 . . Thermal 309 | . 151 158 . Explosive . | . . . . Electromagnetic 127 | . . 127 . Impact . | . . . . Slashing . | . . . . Piercing . | . . . . Highest Corruption 3 | . . 3 3 Average Corruption 3 | . . 3 3 Corruption Purged . | . . . . Corruption Blocked . | . . . . Effects 2 | . . 2 . Message Errors 2 | . . 2 . Overload Shots . | . . . . Overflow Damage . | . . . . Projectiles . | . . . . Explosions . | . . . . Melee . | . . . . Knockbacks . | . . . . Impact . | . . . . Kinetic . | . . . . Secondary . | . . . . Self-Inflicted Damage 31 | . . 31 . Shots 1 | . . 1 . Rammed 2 | 1 1 . . Targets Rammed 2 | 1 1 . . Kicked . | . . . . Crushed . | . . . . Highest Temperature 234 | . 186 234 . Average Temperature 90 | . 86 97 . Received Heat Transfer 570 | . 246 324 . Siege Activations . | . . . . Robots Corrupted . | . . . . Combat Hostiles . | . . . . Parts Fried 1 | . . 1 . Impact Corruptions . | . . . . Robots Melted . | . . . . Combat Hostiles . | . . . . Parts Melted 2 | . 2 . . Heat Transferred 625 | . 350 275 . Parts Sabotaged . | . . . . Parts Stolen . | . . . . Parts Stripped . | . . . . Power Chain Reactions 1 | . . 1 . Alert | -11 -10 -9 -9 ------- Run | Yrd Mat Mat Min Peak Influence 165 | . 100 165 54 Initial 54 | . . 42 54 Average 60 | . 50 101 54 Maximum Alert Level . | . . . . Low Security (%) 100 | 100 100 100 100 Level 1 . | . . . . Level 2 . | . . . . Level 3 . | . . . . Level 4 . | . . . . Level 5 . | . . . . High Security . | . . . . Max Security . | . . . . Squads Dispatched 4 | . 2 2 . Investigation 1 | . . 1 . Extermination . | . . . . Reinforcement 3 | . 2 1 . Assault . | . . . . Garrison . | . . . . Intercept . | . . . . Searches Triggered . | . . . . Construction Impeded . | . . . . Haulers Reinforced . | . . . . Active Scanning Responses . | . . . . Cargo Convoy Interrupts . | . . . . Stealth | -11 -10 -9 -9 --------- Run | Yrd Mat Mat Min Distress Signals 3 | . . 3 . Communications Jammed . | . . . . Distress Signals . | . . . . Times Spotted 26 | . 7 12 7 Peak Tracking Total 8 | . 3 7 8 Tactical Retreats . | . . . . Traps | -11 -10 -9 -9 ------- Run | Yrd Mat Mat Min Traps Triggered 5 | . 4 1 . Indirectly . | . . . . Trap Hack Attempts . | . . . . Triggered . | . . . . Disarmed . | . . . . Reprogrammed . | . . . . Reused . | . . . . Traps Extracted . | . . . . Installed . | . . . . Triggered . | . . . . Machines | -11 -10 -9 -9 ---------- Run | Yrd Mat Mat Min Machines Disabled 1 | . . 1 . Max in Single Turn 1 | . . 1 . Machines Repaired . | . . . . Machines Dismantled . | . . . . Machines Sabotaged . | . . . . Overloaded Fab Kills . | . . . . Hacking | -11 -10 -9 -9 --------- Run | Yrd Mat Mat Min Machines Accessed . | . . . . Terminals . | . . . . Fabricators . | . . . . Repair Stations . | . . . . Recycling Units . | . . . . Scanalyzers . | . . . . Garrison Access . | . . . . Total Hacks . | . . . . Successful . | . . . . Failed . | . . . . Catastrophic . | . . . . Database Lockouts . | . . . . Manual . | . . . . Terminals . | . . . . Fabricators . | . . . . Repair Stations . | . . . . Recycling Units . | . . . . Scanalyzers . | . . . . Garrison Access . | . . . . Terminal Hacks . | . . . . Fabricator Hacks . | . . . . Repair Station Hacks . | . . . . Recycling Unit Hacks . | . . . . Scanalyzer . | . . . . Garrison Access Hacks . | . . . . Unauthorized Hacks . | . . . . Terminals . | . . . . Fabricators . | . . . . Repair Stations . | . . . . Recycling Units . | . . . . Scanalyzers . | . . . . Garrison Access . | . . . . Data Cores Recovered . | . . . . Used . | . . . . Hacking Detections . | . . . . Full Trace Events . | . . . . Feedback Events . | . . . . Feedback Blocked . | . . . . Robot Schematics Acquired . | . . . . Robots Built . | . . . . Authchips . | . . . . Time . | . . . . Total Robot Build Rating . | . . . . Part Schematics Acquired . | . . . . Parts Built . | . . . . Authchips . | . . . . Time . | . . . . Total Part Build Rating . | . . . . Parts Repaired . | . . . . Time . | . . . . Parts Recycled . | . . . . Recycled Matter . | . . . . Retrieved Matter . | . . . . Retrieved Components . | . . . . Parts Scanalyzed . | . . . . Part Schematics Acquired . | . . . . Parts Damaged . | . . . . Bothacking | -11 -10 -9 -9 ------------ Run | Yrd Mat Mat Min Used RIF Installer . | . . . . Robots Hacked . | . . . . Non-combat . | . . . . Combat . | . . . . Robot Hacks Applied . | . . . . Relay Couplers Released . | . . . . Fabnet Peak Effective % . | . . . . Robots Rewired . | . . . . Allies Hacked . | . . . . Hacks Repelled . | . . . . Allies | -11 -10 -9 -9 -------- Run | Yrd Mat Mat Min Total Allies . | . . . . Largest Group . | . . . . Highest-Rated Group . | . . . . Highest-Rated Ally . | . . . . Total Orders . | . . . . Ally Attacks . | . . . . Total Damage . | . . . . Kills . | . . . . Allies Corrupted . | . . . . Allies Melted . | . . . . Intel | -11 -10 -9 -9 ------- Run | Yrd Mat Mat Min Robot Analysis Total . | . . . . Derelict Logs Recovered 2 | . . . 2 Drone Launches . | . . . . Drone Recoveries . | . . . . Exploration | -11 -10 -9 -9 ------------- Run | Yrd Mat Mat Min Turns Passed 518 | 70 229 170 49 Spaces Moved 409 | 74 133 104 98 Core 145 | 9 4 34 98 Treads 51 | . . 51 . Legs 114 | . 95 19 . Wheels 99 | 65 34 . . Hover . | . . . . Flight . | . . . . Fastest Speed 50 | 50 80 50 50 Average Speed 91 | 76 110 116 50 Slowest Speed 200 | 80 200 160 50 Overloaded Moves . | . . . . Propulsion Burnouts . | . . . . Robots Hopped . | . . . . Cave-ins Triggered . | . . . . Exploration Rate (%) 22 | 4 32 17 35 Regions Visited 3 Branch Regions 1 Pre-discovered Areas . | . . . . Known Exits Taken . | . . . . Unknown Exits Taken 3 | 1 1 1 . Scrap Searched . | . . . . Spaces Dug . | . . . . Terrain Destroyed 2 | . . 2 . Melee . | . . . . Projectile . | . . . . AOE 2 | . . 2 . Terrain Rammed . | . . . . Walls Destroyed . | . . . . Machines Disabled . | . . . . Actions | -11 -10 -9 -9 --------- Run | Yrd Mat Mat Min Total 482 | 84 171 129 98 Wait . | . . . . Move 406 | 73 132 103 98 Hop . | . . . . Pick Up 10 | 4 2 4 . Fast Attach 11 | 6 5 . . Attach 5 | . 4 1 . Detach 2 | . 2 . . Swap 3 | . . 3 . Drop 7 | . 1 6 . Fire 36 | . 24 12 . Melee . | . . . . Ram 2 | 1 1 . . Kick . | . . . . Crush . | . . . . Escape Stasis . | . . . . Rewire . | . . . . Trap . | . . . . Miscellaneous . | . . . . Route ------- -11/Scrapyard -10/Materials -9/Materials (discovered 2 exits: [*Min x2]) -9/Mines (discovered 1 exit: Mat) History --------- Turn | Location | Event 17 | -11/Scrapyard | Discovered new exit (range 16) 71 | -11/Scrapyard | Entered Materials 226 | -10/Materials | Core integrity fell below 50% 282 | -10/Materials | Discovered new exit (range 16) 300 | -10/Materials | Entered another Materials area 300 | -9/Materials | Evolved 2 slots: Power x1, Propulsion x1 324 | -9/Materials | Build established: Mutant 453 | -9/Materials | Released all parts (3) 456 | -9/Materials | Discovered new exit (range 16) 459 | -9/Materials | Core integrity fell below 50% 460 | -9/Materials | Met 8R-AWN 461 | -9/Materials | Discovered new exit (range 16) 470 | -9/Materials | Entered Mines 483 | -9/Mines | Lost 4 parts (1p1n2w) 493 | -9/Mines | Assembled infested the area 503 | -9/Mines | Identified exit to Materials 518 | -9/Mines | Core integrity fell below 20% 519 | -9/Mines | Destroyed by D-53 Grenadier with Mini Grenade Launcher Last Messages --------------- U-05 Engineer sends out distress signal. LOCATION=UNKNOWN GOAL=ESCAPE Something is scanning the area. A derelict wanders into view. ALERT: Infestation in the mines, dispatching Demolisher response squad. Acquired derelict log, extracted data. Data stored: Storage entrances (x1). Acquired derelict log, extracted data. Loading 1 Mines exit... C-30 ARC bursts open, deploying its payload. D-53 Grenadier unfolds itself. The unstable cave ceiling collapses. as-19506 destroyed. as-16808 destroyed. as-95308 destroyed. as-53224 destroyed. Acquired 9 matter. U-05 Engineer lays Concrete. Map ----- +----------------------------------------------------+ | ?????????????????????????????????????????????????# | | ?????????????????????????????????????????????????# | | ????????????????????????????????????????????????## | | ???????????????????????????????????????????????## | | ??????????????????????????????????????????????## | | ?????????????????????????????????????????????## | | ???????????????????????????????? ??????????## | | ??????????????????????????????? ????????# | | ???????????????????????????????# ???????## | | ????????????????????????????????# #??????# | | ????????????????????????????????# ??????# | | ????????????????????????????????# ??????## | | ????????????????????????????????# #??????# | | ???????????????????????????????## ####### | | ?????????????????????????? #### ## | | ?????????????????????????? # | | ????????????????????????? ## | | ?????????????????????????# ### | | ??????????????????????????# ####?# | | ??????????????????????????????#### ##????# | | ???????????????????????????##????##### ##?????# | | ?????????????????????##?### ##??????## #??????? | | ?????????????# ?????# ## ###?#### ##??????? | | ??????????????# ??# ### % % #???????? | | ???????????????# u# # % #????????? | | ?????????????????# @ d %% #????????? | | ?????????????????## d #???????? | | ??????????????????# ## #??????? | | ?????????????????????# ### ####### #?????? | | ????????????????????# ??? ##??????## #?????? | | ????????????????????# ??? #????????# #?????? | | ???????????????????? ??? #????????# #?????? | | ??????????????????? ??? #????????## #?????? | | ??????????????????### ??? #??????????# ##?????? | | ????????????????????# ????? #???????????###??????? | | ????????????????????##?????##????????????????????? | | ?????????????????????????????????????????????????? | | ?????????????????????????????????????#?####??????? | | ?????????????????????????????????????? ?????? | | ????????????????????????????????????????? ????? | | ???????????????????????????????????????????# #### | | ???????????????????????????????????????????# | | ???????????????????????????????????????????# | | ???????????????????????????????????????????###### | | ????????????????????????????????????????????????# | | ???????????????????????????????????????????????## | | ??????????????????????????????????????????????## | | ??????????????????????????????????????????????# | | ??????????????????????????????????????????????# | | ??????????????????????????????????????????????# | +----------------------------------------------------+ Best States ------------- Heat Dissipation 28 Energy Generation 10 Energy Capacity 250 Matter Stores 300 Matter Capacity 300 Sight Range 16 Terrain Scan Density 10 Evasion (%) 55 Recoil Reduction 3 Item Schematics ----------------- None Robot Schematics ------------------ None Fabricated ------------ Nothing Alien Tech Used ----------------- None Achievements -------------- None Challenges ------------ None Game ------ Seed ExoskeletonCoilWartreads Manual? 0 Play Time 00:10:09 Cumulative 4.2 hours Start 2024.09.26 @ 15:41:02 End 2024.09.26 @ 15:52:13 Sessions 1 Manual Loads 0 Difficulty Rogue Special Mode None Game No. 8 Rogue 7 Adventurer 0 Explorer 1 Win Type - Total 0 Types 0/0/0/0/0/0/0/0/0 Lore% 2 Gallery% 8 Achievement% 9 Wizard Run 0 Options --------- Layout 1 ASCII 0 Keyboard 1 Movement Arrows Keybinds 0 Fullscreen 1 Font 24/Smallcaps Map View 50x35 Zoom Use 0% Tactical HUD 0 Map Filters NONE Filters NONE Steam 1 RUN: 964d1d91-59a9-45bd-abd0-bccbde284c43